fUSD/lending_fUSD_20260516
["ID","MTS","AMOUNT","RATE_DAILY","PERIOD"]
[422368463,1778884233000,-166.66,0.0001411,2]
[422368467,1778884233000,-150.0,0.00014237,2]
[422368482,1778884233000,-150.0,0.00014487,2]
[422368483,1778884233000,-150.0,0.00014487,2]
[422368480,1778884233000,-5115.95206436,0.00014484,2]
[422368477,1778884233000,-480.0,0.00014409,2]
[422368479,1778884233000,-150.0,0.00014457,2]
[422368478,1778884233000,-1680.0,0.00014454,2]
[422368484,1778884233000,-2651.9,0.00014504,2]
[422368475,1778884233000,-166.66,0.00014384,2]
[422368469,1778884233000,-166.66,0.00014247,2]
[422368474,1778884233000,-2000.0,0.00014372,2]
[422368472,1778884233000,-150.0,0.00014369,2]
[422368476,1778884233000,-350.0,0.00014398,2]
[422368531,1778884234000,-5000.0,0.000149,2]
[422368533,1778884234000,-1898.12028,0.000149,2]
[422368532,1778884234000,-253.38753431,0.000149,2]
[422368534,1778884234000,-2964.44425005,0.000149,2]
[422368535,1778884234000,-219.95,0.000149,2]
[422368538,1778884234000,-150.0,0.00014986,2]
[422368539,1778884234000,-150.0,0.00014986,2]
[422368537,1778884234000,-150.0,0.00014986,2]
[422368544,1778884234000,-500.0,0.00014998,2]
[422368540,1778884234000,-150.00000001,0.00014986,2]
[422368541,1778884234000,-150.0,0.00014986,2]
[422368543,1778884234000,-500.0,0.00014998,2]
[422368536,1778884234000,-2315.87244444,0.000149,2]
[422368527,1778884234000,-464.2157,0.000149,2]
[422368516,1778884234000,-49.56063275,0.00014899,2]
[422368528,1778884234000,-17061.47664226,0.000149,3]
[422368529,1778884234000,-1571.42971141,0.000149,2]
[422368526,1778884234000,-2315.87244444,0.000149,2]
[422368524,1778884234000,-2315.87244444,0.000149,2]
[422368525,1778884234000,-2315.87244444,0.000149,2]
[422368523,1778884234000,-2315.87244444,0.000149,2]
[422368522,1778884234000,-2315.87244444,0.00014899,2]
[422368520,1778884234000,-2315.87244444,0.00014899,2]
[422368518,1778884234000,-2315.87244444,0.00014899,2]
[422368521,1778884234000,-2315.87244444,0.00014899,2]
[422368517,1778884234000,-462.04426086,0.00014899,2]
[422368519,1778884234000,-462.0442608,0.00014899,2]
[422368515,1778884234000,-2266.3118117,0.00014899,2]
[422368542,1778884234000,-151.0,0.00014997,2]
[422368530,1778884234000,-282.11118555,0.000149,2]
[422368545,1778884234000,-500.0,0.00014998,2]
[422368567,1778884234000,-500.0,0.00014999,2]
[422368546,1778884234000,-271.96986789,0.00014998,2]
[422368577,1778884234000,-38.17474511,0.00014999,2]
[422368575,1778884234000,-500.0,0.00014999,2]
[422368574,1778884234000,-500.0,0.00014999,2]
[422368576,1778884234000,-500.0,0.00014999,2]
[422368573,1778884234000,-26.44947078,0.00014999,2]
[422368572,1778884234000,-473.55052922,0.00014999,2]
[422368571,1778884234000,-433.68580669,0.00014999,2]
[422368569,1778884234000,-377.10211992,0.00014999,2]
[422368547,1778884234000,-228.03013211,0.00014998,2]
[422368565,1778884234000,-500.0,0.00014999,2]
[422368566,1778884234000,-500.0,0.00014999,2]
[422368568,1778884234000,-500.0,0.00014999,2]
[422368561,1778884234000,-434.00210388,0.00014999,2]
[422368563,1778884234000,-500.0,0.00014999,2]
[422368570,1778884234000,-122.89788008,0.00014999,2]
[422368560,1778884234000,-65.99789612,0.00014999,2]
[422368564,1778884234000,-500.0,0.00014999,2]
[422368548,1778884234000,-500.0,0.00014998,2]
[422368550,1778884234000,-1093.77,0.00014998,2]
[422368551,1778884234000,-500.0,0.00014998,2]
[422368554,1778884234000,-201.38691855,0.00014999,5]
[422368552,1778884234000,-500.0,0.00014998,2]
[422368553,1778884234000,-1349.28756851,0.00014999,5]
[422368555,1778884234000,-500.0,0.00014999,2]
[422368549,1778884234000,-503.8532288,0.00014998,2]
[422368557,1778884234000,-500.0,0.00014999,2]
[422368559,1778884234000,-500.0,0.00014999,2]
[422368558,1778884234000,-500.0,0.00014999,2]
[422368562,1778884234000,-500.0,0.00014999,2]
[422368556,1778884234000,-500.0,0.00014999,2]
[422368594,1778884238000,-500.0,0.00014999,2]
[422368586,1778884238000,-500.0,0.00014999,2]
[422368592,1778884238000,-500.0,0.00014999,2]
[422368593,1778884238000,-500.0,0.00014999,2]
[422368590,1778884238000,-194.7429879,0.00014999,2]
[422368587,1778884238000,-500.0,0.00014999,2]
[422368589,1778884238000,-327.17144403,0.00014999,2]
[422368591,1778884238000,-254.28762829,0.00014999,2]
[422368579,1778884238000,-648.88264508,0.00013608,2]
[422368588,1778884238000,-500.0,0.00014999,2]
[422368584,1778884238000,-500.0,0.00014999,2]
[422368583,1778884238000,-348.57952854,0.00014999,2]
[422368585,1778884238000,-500.0,0.00014999,2]
[422368581,1778884238000,-462.0442608,0.00014899,2]
[422368578,1778884238000,-624.53735492,0.00013608,2]
[422368601,1778884238000,-500.0,0.00014999,2]
[422368582,1778884238000,-348.59852337,0.00014999,2]
[422368595,1778884238000,-500.0,0.00014999,2]
[422368580,1778884238000,-462.0442608,0.00014899,2]
[422368596,1778884238000,-500.0,0.00014999,2]
[422368598,1778884238000,-426.17237592,0.00014999,2]
[422368613,1778884238000,-500.0,0.00014999,2]
[422368607,1778884238000,-500.0,0.00014999,2]
[422368614,1778884238000,-500.0,0.00014999,2]
[422368615,1778884238000,-500.0,0.00014999,2]
[422368616,1778884238000,-500.0,0.00014999,2]
[422368611,1778884238000,-500.0,0.00014999,2]
[422368609,1778884238000,-500.0,0.00014999,2]
[422368610,1778884238000,-500.0,0.00014999,2]
[422368612,1778884238000,-500.0,0.00014999,2]
[422368606,1778884238000,-500.0,0.00014999,2]
[422368605,1778884238000,-401.0210076,0.00014999,2]
[422368603,1778884238000,-500.0,0.00014999,2]
[422368604,1778884238000,-244.36367736,0.00014999,2]
[422368597,1778884238000,-500.0,0.00014999,2]
[422368608,1778884238000,-500.0,0.00014999,2]
[422368599,1778884238000,-500.0,0.00014999,2]
[422368602,1778884238000,-500.0,0.00014999,2]
[422368600,1778884238000,-500.0,0.00014999,2]
[422368665,1778884239000,-724.40538213,0.00014999,2]
[422368660,1778884239000,-724.40538213,0.00014999,2]
[422368666,1778884239000,-724.40538213,0.00014999,2]
[422368658,1778884239000,-724.40538213,0.00014999,2]
[422368659,1778884239000,-724.40538213,0.00014999,2]
[422368653,1778884239000,-500.0,0.00014999,2]
[422368656,1778884239000,-724.40538213,0.00014999,2]
[422368661,1778884239000,-724.40538213,0.00014999,2]
[422368648,1778884239000,-500.0,0.00014999,2]
[422368649,1778884239000,-271.1999,0.00014999,2]
[422368650,1778884239000,-500.0,0.00014999,2]
[422368657,1778884239000,-724.40538213,0.00014999,2]
[422368662,1778884239000,-724.40538213,0.00014999,2]
[422368668,1778884239000,-724.40538213,0.00014999,2]
[422368667,1778884239000,-724.40538213,0.00014999,2]
[422368663,1778884239000,-724.40538213,0.00014999,2]
[422368618,1778884239000,-429.70878965,0.00014999,2]
[422368669,1778884239000,-724.40538213,0.00014999,2]
[422368670,1778884239000,-724.40538213,0.00014999,2]
[422368671,1778884239000,-724.40538213,0.00014999,2]
[422368673,1778884239000,-500.0,0.00014999,2]
[422368651,1778884239000,-500.0,0.00014999,2]
[422368672,1778884239000,-724.40538213,0.00014999,2]
[422368674,1778884239000,-724.40538213,0.00014999,2]
[422368682,1778884239000,-724.40538213,0.00014999,2]
[422368681,1778884239000,-724.40538213,0.00014999,2]
[422368676,1778884239000,-724.40538213,0.00014999,2]
[422368678,1778884239000,-724.40538213,0.00014999,2]
[422368664,1778884239000,-724.40538213,0.00014999,2]
[422368646,1778884239000,-254.18339889,0.00014999,2]
[422368636,1778884239000,-1093.77,0.00014999,2]
[422368654,1778884239000,-500.0,0.00014999,2]
[422368679,1778884239000,-724.40538213,0.00014999,2]
[422368617,1778884239000,-500.0,0.00014999,2]
[422368620,1778884239000,-1093.77,0.00014999,2]
[422368619,1778884239000,-1093.77,0.00014999,2]
[422368622,1778884239000,-1093.77,0.00014999,2]
[422368621,1778884239000,-1093.77,0.00014999,2]
[422368629,1778884239000,-1093.77,0.00014999,2]
[422368624,1778884239000,-1093.77,0.00014999,2]
[422368626,1778884239000,-1093.77,0.00014999,2]
[422368625,1778884239000,-1093.77,0.00014999,2]
[422368623,1778884239000,-1093.77,0.00014999,2]
[422368627,1778884239000,-1093.77,0.00014999,2]
[422368630,1778884239000,-1093.77,0.00014999,2]
[422368632,1778884239000,-1093.77,0.00014999,2]
[422368631,1778884239000,-1093.77,0.00014999,2]
[422368633,1778884239000,-1093.77,0.00014999,2]
[422368634,1778884239000,-1093.77,0.00014999,2]
[422368640,1778884239000,-1093.89987748,0.00014999,2]
[422368635,1778884239000,-1093.77,0.00014999,2]
[422368638,1778884239000,-1093.77,0.00014999,2]
[422368639,1778884239000,-1093.77,0.00014999,2]
[422368641,1778884239000,-500.0,0.00014999,2]
[422368637,1778884239000,-1093.77,0.00014999,2]
[422368642,1778884239000,-500.0,0.00014999,2]
[422368644,1778884239000,-500.0,0.00014999,2]
[422368643,1778884239000,-431.69745624,0.00014999,2]
[422368645,1778884239000,-500.0,0.00014999,2]
[422368647,1778884239000,-174.29952816,0.00014999,2]
[422368655,1778884239000,-500.0,0.00014999,2]
[422368652,1778884239000,-204.82762595,0.00014999,2]
[422368675,1778884239000,-724.40538213,0.00014999,2]
[422368686,1778884239000,-724.40538213,0.00014999,2]
[422368677,1778884239000,-724.40538213,0.00014999,2]
[422368716,1778884239000,-712.61273637,0.00014999,2]
[422368714,1778884239000,-712.61273637,0.00014999,2]
[422368717,1778884239000,-712.61273637,0.00014999,2]
[422368719,1778884239000,-712.61273637,0.00014999,2]
[422368722,1778884239000,-712.61273637,0.00014999,2]
[422368720,1778884239000,-712.61273637,0.00014999,2]
[422368721,1778884239000,-712.61273637,0.00014999,2]
[422368724,1778884239000,-712.61273637,0.00014999,2]
[422368723,1778884239000,-712.61273637,0.00014999,2]
[422368730,1778884239000,-712.61273637,0.00014999,2]
[422368729,1778884239000,-712.61273637,0.00014999,2]
[422368734,1778884239000,-705.48660899,0.00014999,2]
[422368727,1778884239000,-712.61273637,0.00014999,2]
[422368715,1778884239000,-712.61273637,0.00014999,2]
[422368726,1778884239000,-712.61273637,0.00014999,2]
[422368733,1778884239000,-705.48660899,0.00014999,2]
[422368725,1778884239000,-712.61273637,0.00014999,2]
[422368735,1778884239000,-705.48660899,0.00014999,2]
[422368731,1778884239000,-712.61273637,0.00014999,2]
[422368728,1778884239000,-712.61273637,0.00014999,2]
[422368680,1778884239000,-724.40538213,0.00014999,2]
[422368736,1778884239000,-705.48660899,0.00014999,2]
[422368739,1778884239000,-705.48660899,0.00014999,2]
[422368744,1778884239000,-745.49,0.00014999,2]
[422368743,1778884239000,-745.49,0.00014999,2]
[422368741,1778884239000,-705.48660899,0.00014999,2]
[422368740,1778884239000,-705.48660899,0.00014999,2]
[422368742,1778884239000,-745.49,0.00014999,2]
[422368732,1778884239000,-705.48660899,0.00014999,2]
[422368718,1778884239000,-712.61273637,0.00014999,2]
[422368737,1778884239000,-705.48660899,0.00014999,2]
[422368712,1778884239000,-712.61273637,0.00014999,2]
[422368713,1778884239000,-712.61273637,0.00014999,2]
[422368685,1778884239000,-724.40538213,0.00014999,2]
[422368684,1778884239000,-724.40538213,0.00014999,2]
[422368683,1778884239000,-724.40538213,0.00014999,2]
[422368687,1778884239000,-724.40538213,0.00014999,2]
[422368688,1778884239000,-724.40538213,0.00014999,2]
[422368691,1778884239000,-724.40538213,0.00014999,2]
[422368694,1778884239000,-724.40538213,0.00014999,2]
[422368693,1778884239000,-724.40538213,0.00014999,2]
[422368692,1778884239000,-724.40538213,0.00014999,2]
[422368695,1778884239000,-724.40538213,0.00014999,2]
[422368689,1778884239000,-724.40538213,0.00014999,2]
[422368690,1778884239000,-724.40538213,0.00014999,2]
[422368696,1778884239000,-724.40538213,0.00014999,2]
[422368738,1778884239000,-705.48660899,0.00014999,2]
[422368699,1778884239000,-724.40538213,0.00014999,2]
[422368697,1778884239000,-724.40538213,0.00014999,2]
[422368705,1778884239000,-712.61273637,0.00014999,2]
[422368711,1778884239000,-712.61273637,0.00014999,2]
[422368709,1778884239000,-712.61273637,0.00014999,2]
[422368704,1778884239000,-712.61273637,0.00014999,2]
[422368706,1778884239000,-712.61273637,0.00014999,2]
[422368707,1778884239000,-712.61273637,0.00014999,2]
[422368703,1778884239000,-712.61273637,0.00014999,2]
[422368700,1778884239000,-712.61273637,0.00014999,2]
[422368701,1778884239000,-712.61273637,0.00014999,2]
[422368702,1778884239000,-712.61273637,0.00014999,2]
[422368710,1778884239000,-712.61273637,0.00014999,2]
[422368698,1778884239000,-724.40538213,0.00014999,2]
[422368708,1778884239000,-712.61273637,0.00014999,2]
[422368763,1778884240000,-745.49,0.00014999,2]
[422368761,1778884240000,-745.49,0.00014999,2]
[422368755,1778884240000,-745.49,0.00014999,2]
[422368758,1778884240000,-745.49,0.00014999,2]
[422368759,1778884240000,-745.49,0.00014999,2]
[422368751,1778884240000,-745.49,0.00014999,2]
[422368749,1778884240000,-745.49,0.00014999,2]
[422368756,1778884240000,-745.49,0.00014999,2]
[422368748,1778884240000,-745.49,0.00014999,2]
[422368753,1778884240000,-745.49,0.00014999,2]
[422368757,1778884240000,-745.49,0.00014999,2]
[422368752,1778884240000,-745.49,0.00014999,2]
[422368750,1778884240000,-745.49,0.00014999,2]
[422368760,1778884240000,-745.49,0.00014999,2]
[422368747,1778884240000,-745.49,0.00014999,2]
[422368746,1778884240000,-745.49,0.00014999,2]
[422368745,1778884240000,-745.49,0.00014999,2]
[422368754,1778884240000,-745.49,0.00014999,2]
[422368764,1778884240000,-745.59461365,0.00014999,2]
[422368771,1778884240000,-300.0,0.00014999,2]
[422368774,1778884240000,-300.0,0.00014999,2]
[422368785,1778884240000,-20175.42554435,0.00015,2]
[422368786,1778884240000,-374.64,0.00015,2]
[422368781,1778884240000,-3144.531642,0.00015,14]
[422368783,1778884240000,-3984392.83541105,0.00015,2]
[422368779,1778884240000,-22996.06868546,0.00015,2]
[422368782,1778884240000,-8082.43942848,0.00015,2]
[422368765,1778884240000,-343.70420563,0.00014999,2]
[422368777,1778884240000,-150.0,0.00015,2]
[422368780,1778884240000,-2076.06689717,0.00015,2]
[422368773,1778884240000,-666.0,0.00014999,2]
[422368768,1778884240000,-666.0,0.00014999,2]
[422368770,1778884240000,-300.0,0.00014999,2]
[422368766,1778884240000,-300.0,0.00014999,2]
[422368769,1778884240000,-183.9169181,0.00014999,2]
[422368767,1778884240000,-300.0,0.00014999,2]
[422368775,1778884240000,-1243.0,0.00015,5]
[422368772,1778884240000,-300.0,0.00014999,2]
[422368776,1778884240000,-985.0,0.00015,5]
[422368778,1778884240000,-150.0,0.00015,2]
[422368787,1778884241000,-80633.16401403,0.00015,2]
[422368789,1778884244000,-462.0442608,0.000149,2]
[422368792,1778884244000,-22232.79475072,0.00015,2]
[422368790,1778884244000,-40049.36094482,0.00015,2]
[422368803,1778884246000,-417.0,0.00015,2]
[422368804,1778884246000,-845.7459,0.00015,2]
[422368808,1778884329000,722.86,0.00030136,120]
[422368809,1778884478000,510.66806166,0.00030136,120]
[422368812,1778885118000,47.21273674,7.189e-05,2]
[422368813,1778885118000,119.88726326,7.189e-05,2]
[422368811,1778885118000,167.1,6.859e-05,2]
[422368810,1778885118000,167.1,6.529e-05,2]
[422368819,1778885119000,167.1,8.84e-05,2]
[422368818,1778885119000,167.1,8.51e-05,2]
[422368817,1778885119000,167.1,8.18e-05,2]
[422368816,1778885119000,20.69347757,7.85e-05,2]
[422368815,1778885119000,146.40652243,7.85e-05,2]
[422368814,1778885119000,167.1,7.52e-05,2]
[422368820,1778885120000,167.1,9.17e-05,2]
[422368821,1778885120000,167.1,9.501e-05,2]
[422368822,1778885120000,167.1,9.831e-05,2]
[422368825,1778885365000,-23.67388238,0.00010821,2]
[422368823,1778885365000,-167.1,0.00010161,2]
[422368824,1778885365000,-167.1,0.00010491,2]
[422368847,1778885431000,-166.55,0.00012832,2]
[422368849,1778885431000,-1200.0,0.00012935,2]
[422368846,1778885431000,-2233.73,0.00012829,2]
[422368845,1778885431000,-167.1,0.00012802,2]
[422368844,1778885431000,-664.63,0.00012628,2]
[422368841,1778885431000,-363.75,0.00012472,2]
[422368843,1778885431000,-177.71,0.00012585,2]
[422368840,1778885431000,-167.1,0.00012472,2]
[422368836,1778885431000,-664.63,0.0001232,2]
[422368829,1778885431000,-143.42611762,0.00010821,2]
[422368834,1778885431000,-299.52462401,0.00012276,2]
[422368833,1778885431000,-167.1,0.00012142,2]
[422368838,1778885431000,-161.61,0.00012424,2]
[422368832,1778885431000,-167.1,0.00011812,2]
[422368831,1778885431000,-167.1,0.00011482,2]
[422368837,1778885431000,-150.0,0.00012376,2]
[422368839,1778885431000,-90884.35,0.00012424,2]
[422368842,1778885431000,-200.66,0.00012507,2]
[422368835,1778885431000,-980.86,0.00012291,2]
[422368851,1778885431000,-664.63,0.00012936,2]
[422368830,1778885431000,-167.1,0.00011151,2]
[422368855,1778885431000,-664.63,0.00013244,2]
[422368853,1778885431000,-152.0,0.00013021,2]
[422368901,1778885431000,-500.0,0.00013648,2]
[422368904,1778885431000,-500.0,0.00013648,2]
[422368900,1778885431000,-500.0,0.00013648,2]
[422368894,1778885431000,-9999.99,0.00013608,2]
[422368891,1778885431000,-276.33,0.00013608,2]
[422368887,1778885431000,-150.0,0.00013607,2]
[422368884,1778885431000,-665.947,0.00013607,2]
[422368881,1778885431000,-1000.0,0.00013607,2]
[422368897,1778885431000,-500.0,0.00013648,2]
[422368877,1778885431000,-664.63,0.00013552,2]
[422368868,1778885431000,-2500.0,0.00013549,2]
[422368862,1778885431000,-2000.0,0.00013408,2]
[422368864,1778885431000,-183.66,0.0001344,2]
[422368874,1778885431000,-173.2665978,0.0001355,2]
[422368872,1778885431000,-1077.46437394,0.0001355,2]
[422368859,1778885431000,-500.0,0.00013356,2]
[422368870,1778885431000,-150.99,0.0001355,2]
[422368866,1778885431000,-208.38824723,0.00013452,2]
[422368857,1778885431000,-500.0,0.00013356,2]
[422368973,1778885432000,-500.0,0.00013648,2]
[422368966,1778885432000,-500.0,0.00013648,2]
[422368963,1778885432000,-500.0,0.00013648,2]
[422368965,1778885432000,-500.0,0.00013648,2]
[422368956,1778885432000,-500.0,0.00013648,2]
[422368957,1778885432000,-500.0,0.00013648,2]
[422368960,1778885432000,-500.0,0.00013648,2]
[422368962,1778885432000,-500.0,0.00013648,2]
[422368959,1778885432000,-500.0,0.00013648,2]
[422368964,1778885432000,-500.0,0.00013648,2]
[422368961,1778885432000,-183.18941486,0.00013648,2]
[422368974,1778885432000,-500.0,0.00013648,2]
[422368978,1778885432000,-500.0,0.00013648,2]
[422368968,1778885432000,-500.0,0.00013648,2]
[422368969,1778885432000,-500.0,0.00013648,2]
[422368970,1778885432000,-500.0,0.00013648,2]
[422368972,1778885432000,-500.0,0.00013648,2]
[422368967,1778885432000,-500.0,0.00013648,2]
[422368976,1778885432000,-500.0,0.00013648,2]
[422368975,1778885432000,-500.0,0.00013648,2]
[422368980,1778885432000,-500.0,0.00013648,2]
[422368958,1778885432000,-500.0,0.00013648,2]
[422368979,1778885432000,-500.0,0.00013648,2]
[422368977,1778885432000,-500.0,0.00013648,2]
[422368981,1778885432000,-500.0,0.00013648,2]
[422368971,1778885432000,-500.0,0.00013648,2]
[422368955,1778885432000,-500.0,0.00013648,2]
[422368947,1778885432000,-500.0,0.00013648,2]
[422368952,1778885432000,-500.0,0.00013648,2]
[422368983,1778885432000,-500.0,0.00013648,2]
[422368907,1778885432000,-500.0,0.00013648,2]
[422368908,1778885432000,-500.0,0.00013648,2]
[422368909,1778885432000,-500.0,0.00013648,2]
[422368906,1778885432000,-500.0,0.00013648,2]
[422368911,1778885432000,-500.0,0.00013648,2]
[422368912,1778885432000,-500.0,0.00013648,2]
[422368914,1778885432000,-500.0,0.00013648,2]
[422368916,1778885432000,-500.0,0.00013648,2]
[422368921,1778885432000,-500.0,0.00013648,2]
[422368930,1778885432000,-500.0,0.00013648,2]
[422368918,1778885432000,-500.0,0.00013648,2]
[422368954,1778885432000,-500.0,0.00013648,2]
[422368928,1778885432000,-500.0,0.00013648,2]
[422368923,1778885432000,-500.0,0.00013648,2]
[422368932,1778885432000,-500.0,0.00013648,2]
[422368942,1778885432000,-500.0,0.00013648,2]
[422368950,1778885432000,-500.0,0.00013648,2]
[422368949,1778885432000,-500.0,0.00013648,2]
[422368948,1778885432000,-500.0,0.00013648,2]
[422368934,1778885432000,-500.0,0.00013648,2]
[422368936,1778885432000,-500.0,0.00013648,2]
[422368938,1778885432000,-500.0,0.00013648,2]
[422368940,1778885432000,-500.0,0.00013648,2]
[422368953,1778885432000,-500.0,0.00013648,2]
[422368951,1778885432000,-500.0,0.00013648,2]
[422368925,1778885432000,-500.0,0.00013648,2]
[422368982,1778885432000,-500.0,0.00013648,2]
[422368945,1778885432000,-500.0,0.00013648,2]
[422368986,1778885432000,-500.0,0.00013648,2]
[422369021,1778885432000,-500.0,0.00013698,2]
[422369016,1778885432000,-2000.0,0.0001365,2]
[422369022,1778885432000,-500.0,0.00013698,2]
[422369017,1778885432000,-74717.7699,0.0001365,2]
[422369019,1778885432000,-522.42,0.00013698,2]
[422369020,1778885432000,-500.0,0.00013698,2]
[422369024,1778885432000,-500.0,0.00013698,2]
[422369025,1778885432000,-500.0,0.00013698,2]
[422369041,1778885432000,-1077.4643739,0.0001415,2]
[422369030,1778885432000,-166.66,0.00013699,2]
[422369033,1778885432000,-166.66,0.00013836,2]
[422369035,1778885432000,-173.2665978,0.00013936,2]
[422369018,1778885432000,-522.42,0.00013698,2]
[422369027,1778885432000,-683.37,0.00013698,2]
[422369029,1778885432000,-200.0,0.00013699,2]
[422369026,1778885432000,-254.28762829,0.00013698,2]
[422369028,1778885432000,-683.37,0.00013698,2]
[422369034,1778885432000,-1077.4643739,0.0001385,2]
[422369036,1778885432000,-166.66,0.00013973,2]
[422369032,1778885432000,-173.2665978,0.00013743,2]
[422369038,1778885432000,-166.66,0.0001411,2]
[422369039,1778885432000,-173.2665978,0.00014129,2]
[422369037,1778885432000,-1077.4643739,0.00014,2]
[422369042,1778885432000,-1342.0,0.00014228,2]
[422369040,1778885432000,-5000.0,0.00014149,2]
[422368984,1778885432000,-500.0,0.00013648,2]
[422369031,1778885432000,-1077.4643739,0.000137,2]
[422369023,1778885432000,-500.0,0.00013698,2]
[422369015,1778885432000,-500.0,0.00013648,2]
[422369013,1778885432000,-500.0,0.00013648,2]
[422368985,1778885432000,-500.0,0.00013648,2]
[422368987,1778885432000,-601.02186696,0.00013648,2]
[422368989,1778885432000,-500.0,0.00013648,2]
[422368988,1778885432000,-500.0,0.00013648,2]
[422368999,1778885432000,-550.0,0.00013648,2]
[422369000,1778885432000,-500.0,0.00013648,2]
[422368990,1778885432000,-500.0,0.00013648,2]
[422368996,1778885432000,-500.0,0.00013648,2]
[422368994,1778885432000,-500.0,0.00013648,2]
[422368995,1778885432000,-500.0,0.00013648,2]
[422368991,1778885432000,-500.0,0.00013648,2]
[422368992,1778885432000,-500.0,0.00013648,2]
[422369014,1778885432000,-500.0,0.00013648,2]
[422368993,1778885432000,-500.0,0.00013648,2]
[422368997,1778885432000,-500.0,0.00013648,2]
[422369001,1778885432000,-500.0,0.00013648,2]
[422369011,1778885432000,-500.0,0.00013648,2]
[422369012,1778885432000,-500.0,0.00013648,2]
[422369007,1778885432000,-499.99999999,0.00013648,2]
[422368998,1778885432000,-500.0,0.00013648,2]
[422369008,1778885432000,-500.0,0.00013648,2]
[422369010,1778885432000,-500.0,0.00013648,2]
[422369002,1778885432000,-500.0,0.00013648,2]
[422369009,1778885432000,-500.0,0.00013648,2]
[422369006,1778885432000,-411.64751399,0.00013648,2]
[422369003,1778885432000,-500.0,0.00013648,2]
[422369004,1778885432000,-500.0,0.00013648,2]
[422369005,1778885432000,-500.0,0.00013648,2]
[422369043,1778885433000,-166.66,0.00014247,2]
[422369045,1778885433000,-500.0,0.00014249,2]
[422369048,1778885433000,-96171.55786564,0.0001425,2]
[422369046,1778885433000,-150.0,0.00014249,2]
[422369044,1778885433000,-500.0,0.00014249,2]
[422369052,1778885433000,-671.18141117,0.0001425,2]
[422369049,1778885433000,-95696.78625298,0.0001425,2]
[422369050,1778885433000,-186370.2914509,0.0001425,2]
[422369051,1778885433000,-2448.0892418,0.0001425,2]
[422369053,1778885433000,-811.38375138,0.0001425,2]
[422369047,1778885433000,-10967.3251087,0.0001425,2]
[422369099,1778885438000,-151.0,0.00014997,2]
[422369103,1778885438000,-170.74128794,0.00014999,2]
[422369097,1778885438000,-4372.65517103,0.000149,2]
[422369101,1778885438000,-683.37,0.00014998,2]
[422369100,1778885438000,-522.42,0.00014998,2]
[422369104,1778885438000,-500.0,0.00014999,2]
[422369118,1778885438000,-522.42,0.00014999,2]
[422369106,1778885438000,-244.00566998,0.00014999,2]
[422369108,1778885438000,-500.0,0.00014999,2]
[422369105,1778885438000,-500.0,0.00014999,2]
[422369116,1778885438000,-334.45871694,0.00014999,2]
[422369109,1778885438000,-479.02001082,0.00014999,2]
[422369114,1778885438000,-1090.63123349,0.00014999,5]
[422369115,1778885438000,-1090.63123349,0.00014999,5]
[422369112,1778885438000,-1181.55819315,0.00014999,5]
[422369110,1778885438000,-500.0,0.00014999,2]
[422369113,1778885438000,-1090.6312335,0.00014999,5]
[422369111,1778885438000,-170.80396898,0.00014999,2]
[422369117,1778885438000,-522.42,0.00014999,2]
[422369119,1778885438000,-522.42,0.00014999,2]
[422369107,1778885438000,-500.0,0.00014999,2]
[422369098,1778885438000,-2218.37471079,0.000149,2]
[422369095,1778885438000,-1077.4643739,0.000149,2]